[Event "AUT-ch 2018"]
[Site "Vienna"]
[Date "2018.07.25"]
[Round "5"]
[White "Vitouch, Anatol"]
[Black "Pacher, Simon"]
[Result "1/2-1/2"]
[ECO "A45"]
[WhiteElo "2317"]
[BlackElo "2097"]
[Annotator "NA"]
[PlyCount "88"]
[EventDate "2018.07.22"]
[EventType "swiss"]
[EventCountry "AUT"]
[SourceTitle "playchess.com"]
[Source "ChessBase"]
[SourceQuality "1"]
[TimeControl "40/5400+30:1800+30"]

1. d4 {[%emt 0:00:00]} Nf6 {[%emt 0:01:07]} 2. Bg5 {[%emt 0:00:00]} Ne4 {[%emt 0:01:52]} 3. Bf4 {[%emt 0:00:00]} d6 {[%emt 0:00:27]} 4. f3 {[%emt 0:00:00]} Nf6 {[%emt 0:01:37]} 5. e4 {[%emt 0:00:05]} Nbd7 {[%emt 0:01:32]} 6. Nc3 {[%emt 0:01:06]} e5 {[%emt 0:00:29]} 7. Be3 {[%emt 0:01:26]} c6 {[%emt 0:04:05]} 8. Nge2 {[%emt 0:05:14]} Be7 {[%emt 0:06:35]} 9. dxe5 {[%emt 0:09:53]} dxe5 {[%emt 0:02:16]} 10. Ng3 {[%emt 0:00:17]} O-O {[%emt 0:04:05]} 11. Nf5 {[%emt 0:02:46]} Bb4 {[%emt 0:00:59]} 12. Nd6 {[%emt 0:30:18]} Qe7 {[%emt 0:07:36]} 13. Nxc8 {[%emt 0:02:12]} Raxc8 {[%emt 0:00:17]} 14. Bc4 {[%emt 0:07:16]} b5 {[%emt 0:13:51]} 15. Be2 {[%emt 0:00:39]} Bc5 {[%emt 0:08:50]} 16. Qc1 {[%emt 0:00:52]} Nb6 {[%emt 0:05:44]} 17. O-O {[%emt 0:01:17]} Rcd8 {[%emt 0:03:11]} 18. a4 {[%emt 0:06:39]} b4 {[%emt 0:00:42]} 19. Nd1 {[%emt 0:00:24]} a5 {[%emt 0:02:27]} 20. Nf2 {[%emt 0:09:22]} Ne8 {[%emt 0:12:09]} 21. c3 {[%emt 0:05:06]} Nd7 {[%emt 0:03:53]} 22. cxb4 {[%emt 0:00:39]} Bxe3 {[%emt 0:01:49]} 23. Qxe3 {[%emt 0:00:06]} Qxb4 {[%emt 0:00:03]} 24. Nd3 {[%emt 0:00:10]} Qd4 {[%emt 0:02:29]} 25. Qxd4 {[%emt 0:00:06]} exd4 {[%emt 0:00:02]} 26. Rfc1 {[%emt 0:00:47]} Rc8 {[%emt 0:00:06]} 27. b4 {[%emt 0:04:14]} Nd6 {[%emt 0:03:06]} 28. Nc5 {[%emt 0:01:10]} Rfd8 {[%emt 0:00:25]} 29. Rab1 {[%emt 0:02:12]} Nxc5 {[%emt 0:02:09]} 30. bxc5 {[%emt 0:00:17]} Ne8 {[%emt 0:00:39]} 31. Bd3 {[%emt 0:02:11]} Nc7 {[%emt 0:00:29]} 32. Rb6 {[%emt 0:01:01]} Ne6 {[%emt 0:00:07]} 33. g3 {[%emt 0:00:31]} h5 {[%emt 0:01:39]} 34. f4 {[%emt 0:01:52]} h4 {[%emt 0:01:25]} 35. Kf2 {[%emt 0:01:08]} hxg3+ {[%emt 0:01:36]} 36. hxg3 {[%emt 0:00:06]} g6 {[%emt 0:00:03]} 37. Ke2 {[%emt 0:01:06]} Kg7 {[%emt 0:00:13]} 38. f5 {[%emt 0:01:51]} gxf5 {[%emt 0:00:32]} 39. exf5 {[%emt 0:00:08]} Nf8 {[%emt 0:00:25]} 40. Be4 {[%emt 0:02:15]} d3+ {[%emt 0:00:08]} 41. Bxd3 {[%emt 0:31:36]} Nd7 {[%emt 0:33:08]} 42. Rb7 {[%emt 0:00:00]} Ne5 {[%emt 0:00:00]} 43. Rc3 {[%emt 0:00:00]} Rd4 {[%emt 0:00:00]} 44. Bc2 {[%emt 0:00:00]} Rh8 {[%emt 0:00:00]} 1/2-1/2

[Event "AUT-ch 2018"]
[Site "Vienna"]
[Date "2018.07.25"]
[Round "5"]
[White "Gerhold, Michael"]
[Black "Ager, Josef"]
[Result "0-1"]
[ECO "C54"]
[WhiteElo "2254"]
[BlackElo "2154"]
[Annotator "NA"]
[PlyCount "98"]
[EventDate "2018.07.22"]
[EventType "swiss"]
[EventCountry "AUT"]
[SourceTitle "playchess.com"]
[Source "ChessBase"]
[SourceQuality "1"]
[TimeControl "40/5400+30:1800+30"]

1. e4 {[%emt 0:00:00]} e5 {[%emt 0:00:02]} 2. Nf3 {[%emt 0:00:00]} Nc6 {[%emt 0:00:06]} 3. Bc4 {[%emt 0:00:01]} Bc5 {[%emt 0:00:16]} 4. c3 {[%emt 0:02:01]} Nf6 {[%emt 0:00:07]} 5. d3 {[%emt 0:00:05]} d6 {[%emt 0:00:17]} 6. a4 {[%emt 0:00:58]} a6 {[%emt 0:00:48]} 7. O-O {[%emt 0:01:02]} Ba7 {[%emt 0:01:00]} 8. Na3 {[%emt 0:00:22]} Bg4 {[%emt 0:00:43]} 9. Nc2 {[%emt 0:04:17]} O-O {[%emt 0:03:54]} 10. Be3 {[%emt 0:01:23]} Ne7 {[%emt 0:01:04]} 11. Bxa7 {[%emt 0:00:13]} Rxa7 {[%emt 0:00:04]} 12. Ne3 {[%emt 0:00:11]} Bh5 {[%emt 0:00:20]} 13. h3 {[%emt 0:06:32]} Kh8 {[%emt 0:02:18]} 14. a5 {[%emt 0:08:06]} h6 {[%emt 0:04:53]} 15. Kh2 {[%emt 0:09:34]} Qd7 {[%emt 0:03:32]} 16. g4 {[%emt 0:07:31]} Bg6 {[%emt 0:00:23]} 17. Nf5 {[%emt 0:04:41]} Nc6 {[%emt 0:03:43]} 18. Qe2 {[%emt 0:07:22]} Raa8 {[%emt 0:01:20]} 19. Bb3 {[%emt 0:00:36]} Nd8 {[%emt 0:00:13]} 20. N3h4 {[%emt 0:08:41]} Bh7 {[%emt 0:00:45]} 21. Ng2 {[%emt 0:04:00]} Ne6 {[%emt 0:01:02]} 22. f4 {[%emt 0:00:44]} Ng8 {[%emt 0:03:45]} 23. Nfe3 {[%emt 0:07:50]} exf4 {[%emt 0:06:25]} 24. Nxf4 {[%emt 0:00:25]} Nc5 {[%emt 0:04:12]} 25. Bc4 {[%emt 0:03:43]} c6 {[%emt 0:06:05]} 26. b4 {[%emt 0:03:46]} Ne6 {[%emt 0:00:07]} 27. Rf2 {[%emt 0:02:33]} Nxf4 {[%emt 0:02:23]} 28. Rxf4 {[%emt 0:00:04]} d5 {[%emt 0:00:18]} 29. Rf2 {[%emt 0:06:15]} dxc4 {[%emt 0:01:57]} 30. Nxc4 {[%emt 0:00:04]} Qe6 {[%emt 0:02:20]} 31. e5 {[%emt 0:01:28]} Ne7 {[%emt 0:00:42]} 32. d4 {[%emt 0:01:20]} Nd5 {[%emt 0:00:39]} 33. Rf3 {[%emt 0:00:12]} g5 {[%emt 0:02:39]} 34. Nd6 {[%emt 0:02:00]} Nf4 {[%emt 0:02:29]} 35. Qe3 {[%emt 0:02:06]} Rab8 {[%emt 0:02:50]} 36. Re1 {[%emt 0:02:18]} f5 {[%emt 0:01:44]} 37. Rg1 {[%emt 0:01:24]} fxg4 {[%emt 0:00:51]} 38. hxg4 {[%emt 0:00:05]} Kg7 {[%emt 0:02:00]} 39. Qf2 {[%emt 0:03:03]} Nd3 {[%emt 0:02:08]} 40. Qg3 {[%emt 0:00:24]} Rxf3 {[%emt 0:00:38]} 41. Qxf3 {[%emt 0:30:04]} Rf8 {[%emt 0:30:17]} 42. Qg3 {[%emt 0:00:56]} Nf4 {[%emt 0:01:35]} 43. Re1 {[%emt 0:02:26]} Qa2+ {[%emt 0:01:55]} 44. Kh1 {[%emt 0:00:11]} Bg8 {[%emt 0:00:30]} 45. Qh2 {[%emt 0:00:00]} Qd5+ {[%emt 0:00:00]} 46. Kg1 {[%emt 0:00:00]} Be6 {[%emt 0:00:00]} 47. Qg3 {[%emt 0:00:00]} Qa2 {[%emt 0:00:00]} 48. Qh2 {[%emt 0:00:00]} Qb3 {[%emt 0:00:00]} 49. Qd2 {[%emt 0:00:00]} Nh3+ {Ra1} 0-1

[Event "AUT-ch 2018"]
[Site "Vienna"]
[Date "2018.07.25"]
[Round "5"]
[White "Ly, Dominik"]
[Black "Schreiner, Peter"]
[Result "0-1"]
[ECO "C50"]
[WhiteElo "2217"]
[BlackElo "2467"]
[Annotator "ChessBase"]
[PlyCount "38"]
[EventDate "2018.07.22"]
[EventType "swiss"]
[EventCountry "AUT"]
[SourceTitle "playchess.com"]
[Source "ChessBase"]
[SourceQuality "1"]
[TimeControl "40/5400+30:1800+30"]

1. e4 {[%emt 0:00:00]} e5 {[%emt 0:00:00]} 2. Nf3 {[%emt 0:00:00]} Nc6 {[%emt 0:00:00]} 3. Bc4 {[%emt 0:00:00]} Bc5 {[%emt 0:00:15]} 4. O-O {[%emt 0:00:01]} Nf6 {[%emt 0:00:06]} 5. d3 {[%emt 0:00:06]} a6 {[%emt 0:00:14]} 6. c3 {[%emt 0:01:11]} Ba7 {[%emt 0:00:20]} 7. a4 {[%emt 0:00:26]} d6 {[%emt 0:00:20]} 8. Nbd2 {[%emt 0:00:37]} Nh5 {[%emt 0:03:28]} 9. Re1 {[%emt 0:04:37]} Nf4 {[%emt 0:00:24]} 10. Nf1 {[%emt 0:00:23]} Qf6 {[%emt 0:01:28]} 11. Bxf4 {[%emt 0:08:41]} Qxf4 {[%emt 0:00:27]} 12. Ne3 {[%emt 0:00:22]} Ne7 {[%emt 0:07:15]} 13. d4 {[%emt 0:02:23]} O-O {[%emt 0:05:43]} 14. Qd2 {[%emt 0:12:53]} Ng6 {[%emt 0:09:35]} 15. Rad1 {[%emt 0:06:49]} Bd7 {[%emt 0:04:51]} 16. a5 {[%emt 0:00:30]} Rad8 {[%emt 0:08:28]} 17. Qd3 {[%emt 0:09:06]} c6 {[%emt 0:04:03]} 18. Nf5 {[%emt 0:02:31]} d5 {[%emt 0:04:08]} 19. Qe2 {[%emt 0:07:13]} dxe4 {[%emt 0:05:15]} 0-1

[Event "AUT-ch 2018"]
[Site "Vienna"]
[Date "2018.07.25"]
[Round "5"]
[White "Peyrer, Konstantin"]
[Black "Toelly, Michael"]
[Result "1/2-1/2"]
[ECO "B40"]
[WhiteElo "2209"]
[BlackElo "2127"]
[Annotator "NA"]
[PlyCount "88"]
[EventDate "2018.07.22"]
[EventType "swiss"]
[EventCountry "AUT"]
[SourceTitle "playchess.com"]
[Source "ChessBase"]
[SourceQuality "1"]
[TimeControl "40/5400+30:1800+30"]

1. e4 {[%emt 0:00:00]} c5 {[%emt 0:00:00]} 2. Nf3 {[%emt 0:00:00]} e6 {[%emt 0:00:00]} 3. d3 {[%emt 0:01:39]} Nc6 {[%emt 0:00:12]} 4. g3 {[%emt 0:00:06]} d5 {[%emt 0:03:15]} 5. Nbd2 {[%emt 0:00:06]} Nf6 {[%emt 0:00:17]} 6. Bg2 {[%emt 0:00:30]} Bd6 {[%emt 0:01:27]} 7. O-O {[%emt 0:03:28]} O-O {[%emt 0:01:10]} 8. Re1 {[%emt 0:03:49]} Qc7 {[%emt 0:01:05]} 9. Qe2 {[%emt 0:01:13]} dxe4 {[%emt 0:03:40]} 10. dxe4 {[%emt 0:00:08]} e5 {[%emt 0:02:00]} 11. c3 {[%emt 0:03:54]} Na5 {[%emt 0:03:40]} 12. Nh4 {[%emt 0:03:43]} Rd8 {[%emt 0:00:36]} 13. Nf1 {[%emt 0:00:28]} Bf8 {[%emt 0:02:35]} 14. Bg5 {[%emt 0:01:08]} Qb6 {[%emt 0:01:49]} 15. Nf5 {[%emt 0:13:05]} h6 {[%emt 0:02:17]} 16. Be3 {[%emt 0:02:02]} Be6 {[%emt 0:02:37]} 17. b3 {[%emt 0:02:59]} Rd7 {[%emt 0:06:00]} 18. g4 {[%emt 0:04:20]} Qa6 {[%emt 0:06:18]} 19. Qf3 {[%emt 0:03:25]} Qc6 {[%emt 0:05:06]} 20. g5 {[%emt 0:12:42]} hxg5 {[%emt 0:02:49]} 21. Bxg5 {[%emt 0:00:06]} Nh7 {[%emt 0:02:53]} 22. Bh4 {[%emt 0:03:39]} g6 {[%emt 0:02:33]} 23. N5e3 {[%emt 0:00:18]} f5 {[%emt 0:06:49]} 24. exf5 {[%emt 0:15:44]} Qxf3 {[%emt 0:01:11]} 25. Bxf3 {[%emt 0:00:17]} gxf5 {[%emt 0:00:15]} 26. Rad1 {[%emt 0:04:36]} Rg7+ {[%emt 0:03:48]} 27. Kh1 {[%emt 0:00:08]} Ng5 {[%emt 0:00:17]} 28. Bxg5 {[%emt 0:00:30]} Rxg5 {[%emt 0:00:01]} 29. Bd5 {[%emt 0:00:35]} Bxd5+ {[%emt 0:02:45]} 30. Nxd5 {[%emt 0:00:38]} Nc6 {[%emt 0:00:20]} 31. Ng3 {[%emt 0:00:53]} Bg7 {[%emt 0:01:28]} 32. Nc7 {[%emt 0:01:16]} Rd8 {[%emt 0:02:28]} 33. Ne6 {[%emt 0:04:29]} Rxd1 {[%emt 0:00:08]} 34. Rxd1 {[%emt 0:00:03]} Rg6 {[%emt 0:00:05]} 35. Nxg7 {[%emt 0:01:20]} Kxg7 {[%emt 0:00:06]} 36. Nxf5+ {[%emt 0:02:15]} Kf6 {[%emt 0:00:17]} 37. Nd6 {[%emt 0:01:11]} b6 {[%emt 0:00:23]} 38. Nc8 {[%emt 0:00:45]} Kf5 {[%emt 0:01:38]} 39. Rd7 {[%emt 0:00:55]} e4 {[%emt 0:00:42]} 40. Rf7+ {[%emt 0:03:39]} Ke6 {[%emt 0:01:46]} 41. Rc7 {[%emt 0:30:52]} Ne5 {[%emt 0:31:24]} 42. h4 {[%emt 0:06:56]} Rg8 {[%emt 0:13:27]} 43. Ne7 {[%emt 0:00:00]} Re8 {[%emt 0:00:00]} 44. Nc8 {[%emt 0:00:00]} Rg8 {[%emt 0:00:00]} 1/2-1/2

[Event "AUT-ch 2018"]
[Site "Vienna"]
[Date "2018.07.25"]
[Round "5"]
[White "Thoma, Wilhelm Jun."]
[Black "Bauer, Thomas"]
[Result "1-0"]
[ECO "A05"]
[WhiteElo "2181"]
[BlackElo "2181"]
[Annotator "NA"]
[PlyCount "55"]
[EventDate "2018.07.22"]
[EventType "swiss"]
[EventCountry "AUT"]
[SourceTitle "playchess.com"]
[Source "ChessBase"]
[SourceQuality "1"]
[TimeControl "40/5400+30:1800+30"]

1. Nf3 {[%emt 0:00:00]} Nf6 {[%emt 0:00:06]} 2. c4 {[%emt 0:00:00]} g6 {[%emt 0:00:32]} 3. Nc3 {[%emt 0:00:04]} Bg7 {[%emt 0:00:14]} 4. e4 {[%emt 0:00:19]} c5 {[%emt 0:01:58]} 5. d4 {[%emt 0:00:56]} cxd4 {[%emt 0:00:06]} 6. Nxd4 {[%emt 0:00:07]} Nc6 {[%emt 0:00:50]} 7. Be3 {[%emt 0:01:05]} O-O {[%emt 0:00:54]} 8. Be2 {[%emt 0:01:47]} d6 {[%emt 0:01:18]} 9. O-O {[%emt 0:00:34]} Nd7 {[%emt 0:02:27]} 10. Qd2 {[%emt 0:02:52]} Nxd4 {[%emt 0:11:39]} 11. Bxd4 {[%emt 0:00:08]} Nc5 {[%emt 0:01:20]} 12. Rfd1 {[%emt 0:06:36]} Bxd4 {[%emt 0:08:40]} 13. Qxd4 {[%emt 0:00:11]} Ne6 {[%emt 0:00:01]} 14. Qe3 {[%emt 0:01:45]} Qa5 {[%emt 0:01:46]} 15. Nd5 {[%emt 0:02:01]} Re8 {[%emt 0:01:00]} 16. b4 {[%emt 0:00:42]} Qa4 {[%emt 0:02:14]} 17. f4 {[%emt 0:00:53]} Qc6 {[%emt 0:04:30]} 18. a4 {[%emt 0:31:26]} b6 {[%emt 0:16:41]} 19. c5 {[%emt 0:02:42]} Nc7 {[%emt 0:02:02]} 20. Bb5 {[%emt 0:03:51]} Nxb5 {[%emt 0:04:54]} 21. axb5 {[%emt 0:00:06]} Qb7 {[%emt 0:01:07]} 22. c6 {[%emt 0:04:32]} Qb8 {[%emt 0:00:13]} 23. f5 {[%emt 0:00:27]} Kg7 {[%emt 0:03:35]} 24. Ra3 {[%emt 0:01:58]} a6 {[%emt 0:02:04]} 25. Nxb6 {[%emt 0:01:50]} Ra7 {[%emt 0:00:59]} 26. Nxc8 {[%emt 0:00:21]} Rxc8 {[%emt 0:00:42]} 27. b6 {[%emt 0:00:20]} Rxc6 {[%emt 0:00:39]} 28. bxa7 {[%emt 0:00:10]} 1-0

[Event "AUT-ch 2018"]
[Site "Vienna"]
[Date "2018.07.25"]
[Round "5"]
[White "Newrkla, Katharina"]
[Black "Neumeier, Klaus"]
[Result "1-0"]
[ECO "B26"]
[WhiteElo "2175"]
[BlackElo "2284"]
[Annotator "NA"]
[PlyCount "65"]
[EventDate "2018.07.22"]
[EventType "swiss"]
[EventCountry "AUT"]
[SourceTitle "playchess.com"]
[Source "ChessBase"]
[SourceQuality "1"]
[TimeControl "40/5400+30:1800+30"]

1. e4 {[%emt 0:00:00]} c5 {[%emt 0:00:00]} 2. Nc3 {[%emt 0:00:00]} Nc6 {[%emt 0:00:14]} 3. g3 {[%emt 0:00:00]} g6 {[%emt 0:00:32]} 4. Bg2 {[%emt 0:00:00]} Bg7 {[%emt 0:00:17]} 5. d3 {[%emt 0:00:13]} d6 {[%emt 0:01:24]} 6. Nge2 {[%emt 0:00:21]} e5 {[%emt 0:00:45]} 7. Nd5 {[%emt 0:00:39]} Nce7 {[%emt 0:12:23]} 8. Nec3 {[%emt 0:07:58]} Rb8 {[%emt 0:03:11]} 9. a3 {[%emt 0:06:01]} Be6 {[%emt 0:02:53]} 10. O-O {[%emt 0:02:02]} Qd7 {[%emt 0:03:58]} 11. Be3 {[%emt 0:03:04]} b5 {[%emt 0:08:42]} 12. b4 {[%emt 0:01:57]} Rc8 {[%emt 0:14:16]} 13. bxc5 {[%emt 0:23:07]} dxc5 {[%emt 0:00:08]} 14. Rb1 {[%emt 0:00:10]} Bxd5 {[%emt 0:08:39]} 15. Nxd5 {[%emt 0:01:56]} Nxd5 {[%emt 0:04:05]} 16. exd5 {[%emt 0:00:05]} c4 {[%emt 0:00:40]} 17. dxc4 {[%emt 0:02:22]} Rxc4 {[%emt 0:00:22]} 18. Re1 {[%emt 0:03:01]} a6 {[%emt 0:01:37]} 19. Bf1 {[%emt 0:04:17]} Rc7 {[%emt 0:10:05]} 20. a4 {[%emt 0:04:02]} Rb7 {[%emt 0:00:24]} 21. axb5 {[%emt 0:00:15]} axb5 {[%emt 0:00:06]} 22. Ra1 {[%emt 0:09:03]} Ne7 {[%emt 0:01:03]} 23. Ra8+ {[%emt 0:00:24]} Nc8 {[%emt 0:00:05]} 24. Bc5 {[%emt 0:00:55]} f5 {[%emt 0:06:51]} 25. Bg2 {[%emt 0:21:58]} Rc7 {[%emt 0:04:10]} 26. Bb4 {[%emt 0:00:11]} Rc4 {[%emt 0:00:56]} 27. c3 {[%emt 0:01:14]} Rxb4 {[%emt 0:05:41]} 28. cxb4 {[%emt 0:00:31]} O-O {[%emt 0:00:07]} 29. Qc2 {[%emt 0:01:33]} Nd6 {[%emt 0:00:22]} 30. Rxf8+ {[%emt 0:00:32]} Kxf8 {[%emt 0:00:06]} 31. Ra1 {[%emt 0:01:57]} e4 {[%emt 0:01:44]} 32. Ra8+ {[%emt 0:00:10]} Ke7 {[%emt 0:01:16]} 33. Qc5 {[%emt 0:00:17]} 1-0

[Event "AUT-ch 2018"]
[Site "Vienna"]
[Date "2018.07.25"]
[Round "5"]
[White "Schnegg, Anna-Lena"]
[Black "Pernerstorfer, Johannes"]
[Result "1/2-1/2"]
[ECO "B20"]
[WhiteElo "2175"]
[BlackElo "2066"]
[Annotator "NA"]
[PlyCount "64"]
[EventDate "2018.07.22"]
[EventType "swiss"]
[EventCountry "AUT"]
[SourceTitle "playchess.com"]
[Source "ChessBase"]
[SourceQuality "1"]
[TimeControl "40/5400+30:1800+30"]

1. e4 {[%emt 0:00:00]} c5 {[%emt 0:00:00]} 2. b3 {[%emt 0:00:00]} e5 {[%emt 0:02:40]} 3. Nf3 {[%emt 0:09:00]} d6 {[%emt 0:00:24]} 4. Nc3 {[%emt 0:14:30]} Nf6 {[%emt 0:01:54]} 5. h3 {[%emt 0:04:27]} Be7 {[%emt 0:02:47]} 6. Bc4 {[%emt 0:00:50]} O-O {[%emt 0:02:54]} 7. O-O {[%emt 0:00:19]} a6 {[%emt 0:01:29]} 8. a4 {[%emt 0:00:38]} b6 {[%emt 0:00:57]} 9. d3 {[%emt 0:11:26]} Nc6 {[%emt 0:02:25]} 10. Nd5 {[%emt 0:01:30]} Nxd5 {[%emt 0:00:49]} 11. Bxd5 {[%emt 0:00:08]} Bd7 {[%emt 0:00:20]} 12. c3 {[%emt 0:01:02]} Rb8 {[%emt 0:02:07]} 13. Bb2 {[%emt 0:02:21]} Bf6 {[%emt 0:00:18]} 14. d4 {[%emt 0:02:21]} cxd4 {[%emt 0:01:05]} 15. cxd4 {[%emt 0:00:07]} exd4 {[%emt 0:01:45]} 16. Nxd4 {[%emt 0:03:33]} Ne7 {[%emt 0:00:53]} 17. Bc4 {[%emt 0:08:56]} b5 {[%emt 0:01:18]} 18. axb5 {[%emt 0:00:26]} axb5 {[%emt 0:00:49]} 19. Be2 {[%emt 0:02:28]} d5 {[%emt 0:00:39]} 20. exd5 {[%emt 0:19:20]} Nxd5 {[%emt 0:02:37]} 21. Qd2 {[%emt 0:02:23]} Qe7 {[%emt 0:07:25]} 22. Bf3 {[%emt 0:04:08]} Qb4 {[%emt 0:03:23]} 23. Qd3 {[%emt 0:02:37]} Nf4 {[%emt 0:01:32]} 24. Qe4 {[%emt 0:01:04]} Ne6 {[%emt 0:02:59]} 25. Nxe6 {[%emt 0:03:19]} Qxe4 {[%emt 0:00:08]} 26. Bxe4 {[%emt 0:00:05]} Bxe6 {[%emt 0:00:55]} 27. Bxf6 {[%emt 0:00:21]} gxf6 {[%emt 0:00:02]} 28. b4 {[%emt 0:00:47]} Rfc8 {[%emt 0:00:53]} 29. Bd3 {[%emt 0:02:49]} Rc3 {[%emt 0:00:29]} 30. Rfd1 {[%emt 0:02:51]} Kg7 {[%emt 0:00:19]} 31. Bf1 {[%emt 0:00:32]} Bc4 {[%emt 0:09:50]} 32. Rac1 {[%emt 0:01:06]} Rb3 {[%emt 0:17:02]} 1/2-1/2

[Event "AUT-ch 2018"]
[Site "Vienna"]
[Date "2018.07.25"]
[Round "5"]
[White "Steiner, Adam"]
[Black "Morgunov, Daniel"]
[Result "0-1"]
[ECO "C34"]
[WhiteElo "2174"]
[BlackElo "2346"]
[Annotator "NA"]
[PlyCount "58"]
[EventDate "2018.07.22"]
[EventType "swiss"]
[EventCountry "AUT"]
[SourceTitle "playchess.com"]
[Source "ChessBase"]
[SourceQuality "1"]
[TimeControl "40/5400+30:1800+30"]

1. e4 {[%emt 0:00:00]} e5 {[%emt 0:00:00]} 2. f4 {[%emt 0:00:00]} exf4 {[%emt 0:00:00]} 3. Nf3 {[%emt 0:00:00]} Nf6 {[%emt 0:00:00]} 4. e5 {[%emt 0:00:12]} Nh5 {[%emt 0:00:00]} 5. Be2 {[%emt 0:00:35]} d6 {[%emt 0:00:16]} 6. O-O {[%emt 0:00:58]} g6 {[%emt 0:02:05]} 7. d4 {[%emt 0:01:36]} Bg7 {[%emt 0:03:25]} 8. Nc3 {[%emt 0:01:05]} Nc6 {[%emt 0:02:35]} 9. exd6 {[%emt 0:00:39]} cxd6 {[%emt 0:01:12]} 10. Nd5 {[%emt 0:00:36]} g5 {[%emt 0:03:56]} 11. c3 {[%emt 0:02:25]} Be6 {[%emt 0:01:16]} 12. Nxf4 {[%emt 0:00:42]} Nxf4 {[%emt 0:00:32]} 13. Bxf4 {[%emt 0:00:07]} gxf4 {[%emt 0:00:03]} 14. d5 {[%emt 0:00:01]} O-O {[%emt 0:00:28]} 15. Rf2 {[%emt 0:00:33]} Ne5 {[%emt 0:01:34]} 16. Nxe5 {[%emt 0:02:41]} Bxe5 {[%emt 0:01:40]} 17. dxe6 {[%emt 0:00:14]} fxe6 {[%emt 0:00:11]} 18. Bc4 {[%emt 0:08:03]} Qf6 {[%emt 0:13:40]} 19. Qg4+ {[%emt 0:17:13]} Kf7 {[%emt 0:00:18]} 20. Re1 {[%emt 0:29:11]} Rae8 {[%emt 0:15:36]} 21. Kh1 {[%emt 0:05:48]} Qg6 {[%emt 0:08:15]} 22. Qf3 {[%emt 0:02:07]} Re7 {[%emt 0:00:46]} 23. g3 {[%emt 0:05:26]} Ke8 {[%emt 0:07:25]} 24. Bb5+ {[%emt 0:04:23]} Kd8 {[%emt 0:00:34]} 25. Rd2 {[%emt 0:00:48]} Kc8 {[%emt 0:07:17]} 26. Bf1 {[%emt 0:07:11]} Rg8 {[%emt 0:08:35]} 27. Bg2 {[%emt 0:09:31]} fxg3 {[%emt 0:02:51]} 28. Re4 {[%emt 0:00:10]} Qh6 {[%emt 0:01:32]} 29. Rc4+ {[%emt 0:01:22]} Kb8 {[%emt 0:00:06]} 0-1

[Event "AUT-ch 2018"]
[Site "Vienna"]
[Date "2018.07.25"]
[Round "5"]
[White "Zimmermann, Heinz"]
[Black "Mayrhuber, Nikola"]
[Result "1-0"]
[ECO "A06"]
[WhiteElo "2162"]
[BlackElo "2046"]
[Annotator "NA"]
[PlyCount "69"]
[EventDate "2018.07.22"]
[EventType "swiss"]
[EventCountry "AUT"]
[SourceTitle "playchess.com"]
[Source "ChessBase"]
[SourceQuality "1"]
[TimeControl "40/5400+30:1800+30"]

1. Nf3 {[%emt 0:00:00]} d5 {[%emt 0:00:00]} 2. g3 {[%emt 0:00:00]} Nf6 {[%emt 0:00:00]} 3. Bg2 {[%emt 0:03:28]} e6 {[%emt 0:00:00]} 4. O-O {[%emt 0:00:33]} Be7 {[%emt 0:00:01]} 5. d3 {[%emt 0:00:34]} O-O {[%emt 0:00:22]} 6. Nbd2 {[%emt 0:01:34]} c5 {[%emt 0:00:46]} 7. e4 {[%emt 0:03:09]} Nc6 {[%emt 0:00:17]} 8. c3 {[%emt 0:00:20]} b5 {[%emt 0:05:06]} 9. exd5 {[%emt 0:04:41]} exd5 {[%emt 0:03:00]} 10. d4 {[%emt 0:06:25]} cxd4 {[%emt 0:07:22]} 11. Nxd4 {[%emt 0:04:02]} Nxd4 {[%emt 0:00:47]} 12. cxd4 {[%emt 0:00:09]} Qb6 {[%emt 0:07:59]} 13. Nf3 {[%emt 0:02:59]} h6 {[%emt 0:04:59]} 14. Bf4 {[%emt 0:03:51]} Be6 {[%emt 0:00:47]} 15. Qd3 {[%emt 0:01:36]} Rac8 {[%emt 0:01:14]} 16. Rac1 {[%emt 0:01:53]} a5 {[%emt 0:01:57]} 17. h3 {[%emt 0:18:15]} Rc4 {[%emt 0:03:05]} 18. b3 {[%emt 0:01:12]} Rcc8 {[%emt 0:02:49]} 19. Rxc8 {[%emt 0:02:46]} Rxc8 {[%emt 0:00:11]} 20. Rc1 {[%emt 0:00:12]} Rxc1+ {[%emt 0:02:03]} 21. Bxc1 {[%emt 0:00:06]} b4 {[%emt 0:00:45]} 22. Ne5 {[%emt 0:08:58]} Qc7 {[%emt 0:04:07]} 23. Bd2 {[%emt 0:01:48]} Qc8 {[%emt 0:05:56]} 24. g4 {[%emt 0:02:50]} h5 {[%emt 0:13:25]} 25. f3 {[%emt 0:03:48]} Nd7 {[%emt 0:03:43]} 26. f4 {[%emt 0:08:17]} Nxe5 {[%emt 0:10:27]} 27. fxe5 {[%emt 0:01:38]} hxg4 {[%emt 0:01:22]} 28. hxg4 {[%emt 0:00:09]} Qd7 {[%emt 0:00:32]} 29. Qa6 {[%emt 0:04:17]} Bd8 {[%emt 0:04:16]} 30. Qa8 {[%emt 0:00:37]} Kh7 {[%emt 0:00:15]} 31. Bf3 {[%emt 0:06:10]} Bb6 {[%emt 0:04:26]} 32. Be3 {[%emt 0:00:38]} Qb5 {[%emt 0:00:41]} 33. Kf2 {[%emt 0:03:28]} Qd3 {[%emt 0:01:23]} 34. Bxd5 {[%emt 0:00:27]} Bxd4 {[%emt 0:00:31]} 35. Be4+ {[%emt 0:00:12]} 1-0